[Event "Titled Tuesday Blitz January 03 Late 2023"]
[White "Sztokbant, Bernardo Vainzoff"]
[Black "Kalajzic, Ivan"]
[WhiteFideId "2115956"]
[BlackFideId "14506378"]
[WhiteElo "2213"]
[BlackElo "2062"]
[Result "0-1"]
[Round "05"]
[TimeControl "180+2"]
[Date "2023.01.03"]
[WhiteClock "0:00:01"]
[BlackClock "0:00:05"]

1. e4 {[%clk 0:03:00]}  Nc6 {[%clk 0:02:47]} 2. Nf3 {[%clk 0:02:59]}  d6 {[%clk 0:02:47]} 3. d4 {[%clk 0:02:59]}  Bg4 {[%clk 0:02:47]} 4. Be3 {[%clk 0:02:59]}  a6 {[%clk 0:02:46]} 5. Nc3 {[%clk 0:02:59]}  e5 {[%clk 0:02:46]} 6. dxe5 {[%clk 0:02:59]}  Nxe5 {[%clk 0:02:42]} 7. Be2 {[%clk 0:02:59]}  Nxf3+ {[%clk 0:02:42]} 8. Bxf3 {[%clk 0:02:59]}  Bxf3 {[%clk 0:02:43]} 9. Qxf3 {[%clk 0:03:00]}  Qf6 {[%clk 0:02:42]} 10. Qe2 {[%clk 0:02:57]}  Ne7 {[%clk 0:02:39]} 11. O-O {[%clk 0:02:53]}  g6 {[%clk 0:02:39]} 12. Rad1 {[%clk 0:02:38]}  Nc6 {[%clk 0:02:38]} 13. Nd5 {[%clk 0:02:37]}  Qd8 {[%clk 0:02:38]} 14. Bg5 {[%clk 0:02:25]}  Qxg5 {[%clk 0:02:16]} 15. Nxc7+ {[%clk 0:02:25]}  Kd7 {[%clk 0:02:14]} 16. Nxa8 {[%clk 0:02:26]}  Qd8 {[%clk 0:02:14]} 17. e5 {[%clk 0:02:09]}  Qxa8 {[%clk 0:02:10]} 18. exd6 {[%clk 0:02:07]}  Bg7 {[%clk 0:02:02]} 19. c3 {[%clk 0:02:04]}  Re8 {[%clk 0:01:55]} 20. Qc4 {[%clk 0:02:02]}  Re6 {[%clk 0:01:48]} 21. Rfe1 {[%clk 0:02:02]}  Qe8 {[%clk 0:01:48]} 22. Kf1 {[%clk 0:01:58]}  Be5 {[%clk 0:01:28]} 23. Qd5 {[%clk 0:01:29]}  Qb8 {[%clk 0:00:28]} 24. c4 {[%clk 0:01:04]}  b6 {[%clk 0:00:20]} 25. Qf3 {[%clk 0:00:39]}  f5 {[%clk 0:00:16]} 26. Qh3 {[%clk 0:00:38]}  Qg8 {[%clk 0:00:14]} 27. Qa3 {[%clk 0:00:30]}  Bxd6 {[%clk 0:00:11]} 28. Qxa6 {[%clk 0:00:22]}  Rxe1+ {[%clk 0:00:11]} 29. Rxe1 {[%clk 0:00:19]}  Qc8 {[%clk 0:00:11]} 30. Qxc8+ {[%clk 0:00:14]}  Kxc8 {[%clk 0:00:10]} 31. Re8+ {[%clk 0:00:14]}  Kd7 {[%clk 0:00:10]} 32. Rh8 {[%clk 0:00:15]}  Ne5 {[%clk 0:00:11]} 33. Rxh7+ {[%clk 0:00:15]}  Ke6 {[%clk 0:00:11]} 34. b3 {[%clk 0:00:14]}  Bc5 {[%clk 0:00:11]} 35. Ke2 {[%clk 0:00:14]}  g5 {[%clk 0:00:11]} 36. Rh6+ {[%clk 0:00:13]}  Ke7 {[%clk 0:00:11]} 37. a3 {[%clk 0:00:12]}  g4 {[%clk 0:00:11]} 38. b4 {[%clk 0:00:12]}  Bd4 {[%clk 0:00:11]} 39. f3 {[%clk 0:00:10]}  gxf3+ {[%clk 0:00:11]} 40. gxf3 {[%clk 0:00:11]}  f4 {[%clk 0:00:10]} 41. Rh7+ {[%clk 0:00:04]}  Ke6 {[%clk 0:00:11]} 42. Rh4 {[%clk 0:00:05]}  Kf5 {[%clk 0:00:10]} 43. Rh5+ {[%clk 0:00:05]}  Ke6 {[%clk 0:00:10]} 44. Rh4 {[%clk 0:00:05]}  Kf5 {[%clk 0:00:10]} 45. c5 {[%clk 0:00:05]}  bxc5 {[%clk 0:00:10]} 46. bxc5 {[%clk 0:00:06]}  Bxc5 {[%clk 0:00:11]} 47. Rh5+ {[%clk 0:00:06]}  Ke6 {[%clk 0:00:11]} 48. a4 {[%clk 0:00:06]}  Bb4 {[%clk 0:00:10]} 49. Rh6+ {[%clk 0:00:06]}  Kd5 {[%clk 0:00:10]} 50. Ra6 {[%clk 0:00:06]}  Nc4 {[%clk 0:00:10]} 51. Rf6 {[%clk 0:00:05]}  Ke5 {[%clk 0:00:10]} 52. Rf7 {[%clk 0:00:04]}  Ba5 {[%clk 0:00:08]} 53. h4 {[%clk 0:00:04]}  Nd6 {[%clk 0:00:07]} 54. Re7+ {[%clk 0:00:03]}  Kd5 {[%clk 0:00:06]} 55. h5 {[%clk 0:00:03]}  Nf5 {[%clk 0:00:07]} 56. Rd7+ {[%clk 0:00:02]}  Ke6 {[%clk 0:00:06]} 57. Rh7 {[%clk 0:00:02]}  Kf6 {[%clk 0:00:06]} 58. Kd3 {[%clk 0:00:03]}  Kg5 {[%clk 0:00:06]} 59. Ra7 {[%clk 0:00:03]}  Be1 {[%clk 0:00:05]} 60. a5 {[%clk 0:00:03]}  Bf2 {[%clk 0:00:05]} 61. Rb7 {[%clk 0:00:03]}  Kxh5 {[%clk 0:00:05]} 62. a6 {[%clk 0:00:03]}  Kh4 {[%clk 0:00:05]} 63. a7 {[%clk 0:00:03]}  Bxa7 {[%clk 0:00:05]} 64. Rxa7 {[%clk 0:00:03]}  Kg3 {[%clk 0:00:05]} 65. Ke4 {[%clk 0:00:02]}  Nd6+ {[%clk 0:00:06]} 66. Kd5 {[%clk 0:00:01]}  Nb5 {[%clk 0:00:06]} 67. Rg7+ {[%clk 0:00:02]}  Kxf3 {[%clk 0:00:05]} 68. Kc4 {[%clk 0:00:02]}  Nd6+ {[%clk 0:00:05]} 69. Kd5 {[%clk 0:00:02]}  Nf5 {[%clk 0:00:05]} 70. Rf7 {[%clk 0:00:02]}  Ne3+ {[%clk 0:00:05]} 71. Ke5 {[%clk 0:00:01]}  Ng4+ {[%clk 0:00:05]} 0-1


[Site "https://www.chess.com"]

[Event "Titled Tuesday Blitz January 03 Late 2023"]
[White "Kujawski, Adam"]
[Black "Altman, Joshua"]
[WhiteFideId "1100920"]
[BlackFideId "426210"]
[WhiteElo "2173"]
[BlackElo "2120"]
[Result "0-1"]
[Round "05"]
[TimeControl "180+2"]
[Date "2023.01.03"]
[WhiteClock "0:00:29"]
[BlackClock "0:01:06"]

1. e4 {[%clk 0:02:50]}  e6 {[%clk 0:03:00]} 2. d4 {[%clk 0:02:50]}  d5 {[%clk 0:03:00]} 3. Nc3 {[%clk 0:02:50]}  Nf6 {[%clk 0:03:00]} 4. Bg5 {[%clk 0:02:50]}  dxe4 {[%clk 0:03:01]} 5. Nxe4 {[%clk 0:02:49]}  Nbd7 {[%clk 0:03:01]} 6. Nf3 {[%clk 0:02:47]}  Be7 {[%clk 0:03:01]} 7. Nxf6+ {[%clk 0:02:46]}  Nxf6 {[%clk 0:03:02]} 8. Bb5+ {[%clk 0:02:39]}  Bd7 {[%clk 0:02:55]} 9. Qe2 {[%clk 0:02:37]}  O-O {[%clk 0:02:51]} 10. O-O {[%clk 0:02:27]}  h6 {[%clk 0:02:37]} 11. Bxf6 {[%clk 0:02:25]}  Bxf6 {[%clk 0:02:38]} 12. Bxd7 {[%clk 0:02:25]}  Qxd7 {[%clk 0:02:39]} 13. c3 {[%clk 0:02:25]}  Rac8 {[%clk 0:02:34]} 14. Rad1 {[%clk 0:02:25]}  Rfd8 {[%clk 0:02:33]} 15. g3 {[%clk 0:02:20]}  Qd5 {[%clk 0:02:31]} 16. a3 {[%clk 0:02:18]}  c5 {[%clk 0:02:29]} 17. dxc5 {[%clk 0:02:17]}  Qxc5 {[%clk 0:02:29]} 18. Kg2 {[%clk 0:02:16]}  b5 {[%clk 0:02:27]} 19. h4 {[%clk 0:01:49]}  a5 {[%clk 0:02:27]} 20. Rxd8+ {[%clk 0:01:34]}  Rxd8 {[%clk 0:02:25]} 21. Rd1 {[%clk 0:01:35]}  Rxd1 {[%clk 0:02:12]} 22. Qxd1 {[%clk 0:01:35]}  b4 {[%clk 0:02:13]} 23. axb4 {[%clk 0:01:21]}  axb4 {[%clk 0:02:14]} 24. cxb4 {[%clk 0:01:21]}  Qxb4 {[%clk 0:02:15]} 25. b3 {[%clk 0:01:22]}  g6 {[%clk 0:02:12]} 26. Qd3 {[%clk 0:01:21]}  Kg7 {[%clk 0:02:12]} 27. Qc4 {[%clk 0:01:18]}  Qa3 {[%clk 0:02:04]} 28. Nd2 {[%clk 0:01:10]}  Qb2 {[%clk 0:02:02]} 29. Nf3 {[%clk 0:00:59]}  g5 {[%clk 0:01:27]} 30. hxg5 {[%clk 0:00:55]}  hxg5 {[%clk 0:01:28]} 31. g4 {[%clk 0:00:54]}  Qa2 {[%clk 0:01:16]} 32. Qb5 {[%clk 0:00:45]}  Qa8 {[%clk 0:01:08]} 33. b4 {[%clk 0:00:36]}  Qe4 {[%clk 0:01:07]} 34. Kg3 {[%clk 0:00:29]}  Qf4+ {[%clk 0:01:06]} 0-1


[Site "https://www.chess.com"]

[Event "Titled Tuesday Blitz January 03 Late 2023"]
[White "Schmidt, Harald"]
[Black "Andreev, Eduard"]
[WhiteFideId "4648358"]
[BlackFideId "14103400"]
[WhiteElo "2347"]
[BlackElo "2413"]
[Result "1-0"]
[Round "05"]
[TimeControl "180+2"]
[Date "2023.01.03"]
[WhiteClock "0:00:10"]
[BlackClock "0:00:08"]

1. c4 {[%clk 0:03:00]}  c5 {[%clk 0:02:59]} 2. Nc3 {[%clk 0:02:59]}  Nc6 {[%clk 0:02:59]} 3. g3 {[%clk 0:02:58]}  g6 {[%clk 0:03:00]} 4. Bg2 {[%clk 0:02:58]}  Bg7 {[%clk 0:03:00]} 5. Nf3 {[%clk 0:02:58]}  e6 {[%clk 0:03:00]} 6. O-O {[%clk 0:02:52]}  Nge7 {[%clk 0:03:00]} 7. d3 {[%clk 0:02:51]}  O-O {[%clk 0:03:00]} 8. Rb1 {[%clk 0:02:50]}  d5 {[%clk 0:02:59]} 9. cxd5 {[%clk 0:02:39]}  exd5 {[%clk 0:03:00]} 10. e4 {[%clk 0:02:35]}  h6 {[%clk 0:02:50]} 11. Re1 {[%clk 0:02:03]}  Be6 {[%clk 0:02:49]} 12. a3 {[%clk 0:01:59]}  Qd7 {[%clk 0:02:45]} 13. Bd2 {[%clk 0:01:52]}  a5 {[%clk 0:02:43]} 14. Qc1 {[%clk 0:01:41]}  Kh7 {[%clk 0:02:42]} 15. Na4 {[%clk 0:01:40]}  dxe4 {[%clk 0:02:21]} 16. Nxc5 {[%clk 0:01:34]}  Qc8 {[%clk 0:02:20]} 17. Nxe6 {[%clk 0:01:28]}  Qxe6 {[%clk 0:02:20]} 18. dxe4 {[%clk 0:01:23]}  Rac8 {[%clk 0:02:14]} 19. Bc3 {[%clk 0:01:19]}  Ne5 {[%clk 0:02:04]} 20. Nxe5 {[%clk 0:01:17]}  Bxe5 {[%clk 0:02:05]} 21. Qe3 {[%clk 0:01:14]}  Nc6 {[%clk 0:01:58]} 22. Qb6 {[%clk 0:01:07]}  Bxc3 {[%clk 0:01:26]} 23. bxc3 {[%clk 0:01:06]}  Qc4 {[%clk 0:01:16]} 24. Qxb7 {[%clk 0:01:03]}  Rb8 {[%clk 0:01:08]} 25. Qc7 {[%clk 0:00:59]}  Rbc8 {[%clk 0:01:06]} 26. Qb6 {[%clk 0:00:52]}  Ne5 {[%clk 0:00:51]} 27. Qd4 {[%clk 0:00:51]}  Qxc3 {[%clk 0:00:50]} 28. Qxc3 {[%clk 0:00:41]}  Rxc3 {[%clk 0:00:50]} 29. Rb5 {[%clk 0:00:41]}  Nd3 {[%clk 0:00:50]} 30. Re3 {[%clk 0:00:39]}  Rd8 {[%clk 0:00:23]} 31. Bf1 {[%clk 0:00:38]}  Rc1 {[%clk 0:00:14]} 32. Rxa5 {[%clk 0:00:33]}  Nc5 {[%clk 0:00:11]} 33. Kg2 {[%clk 0:00:31]}  Rdd1 {[%clk 0:00:11]} 34. Be2 {[%clk 0:00:29]}  Rg1+ {[%clk 0:00:10]} 35. Kh3 {[%clk 0:00:28]}  Ne6 {[%clk 0:00:10]} 36. f4 {[%clk 0:00:28]}  g5 {[%clk 0:00:10]} 37. f5 {[%clk 0:00:25]}  Nd4 {[%clk 0:00:10]} 38. Bh5 {[%clk 0:00:23]}  Rc7 {[%clk 0:00:08]} 39. Rd5 {[%clk 0:00:18]}  Nc2 {[%clk 0:00:08]} 40. Re2 {[%clk 0:00:16]}  Ra1 {[%clk 0:00:07]} 41. e5 {[%clk 0:00:16]}  Rxa3 {[%clk 0:00:05]} 42. e6 {[%clk 0:00:15]}  fxe6 {[%clk 0:00:06]} 43. fxe6 {[%clk 0:00:14]}  Raa7 {[%clk 0:00:04]} 44. Rd7+ {[%clk 0:00:06]}  Rxd7 {[%clk 0:00:04]} 45. exd7 {[%clk 0:00:06]}  Rxd7 {[%clk 0:00:05]} 46. Rxc2 {[%clk 0:00:06]}  Kg7 {[%clk 0:00:05]} 47. Rc5 {[%clk 0:00:05]}  Rd4 {[%clk 0:00:05]} 48. Rc6 {[%clk 0:00:02]}  Rd5 {[%clk 0:00:04]} 49. Rg6+ {[%clk 0:00:02]}  Kh7 {[%clk 0:00:05]} 50. Re6 {[%clk 0:00:02]}  Rd4 {[%clk 0:00:05]} 51. Re7+ {[%clk 0:00:01]}  Kg8 {[%clk 0:00:06]} 52. Bg4 {[%clk 0:00:01]}  Rb4 {[%clk 0:00:05]} 53. Ra7 {[%clk 0:00:01]}  Rd4 {[%clk 0:00:05]} 54. Bf5 {[%clk 0:00:02]}  Rb4 {[%clk 0:00:04]} 55. Ra6 {[%clk 0:00:01]}  Kg7 {[%clk 0:00:03]} 56. Rg6+ {[%clk 0:00:01]}  Kf7 {[%clk 0:00:04]} 57. Rxh6 {[%clk 0:00:01]}  Rb5 {[%clk 0:00:04]} 58. Bg4 {[%clk 0:00:01]}  Rb4 {[%clk 0:00:05]} 59. Ra6 {[%clk 0:00:02]}  Rb2 {[%clk 0:00:04]} 60. Rc6 {[%clk 0:00:03]}  Ra2 {[%clk 0:00:04]} 61. Rd6 {[%clk 0:00:03]}  Rc2 {[%clk 0:00:04]} 62. Rd7+ {[%clk 0:00:04]}  Kf6 {[%clk 0:00:04]} 63. Rd6+ {[%clk 0:00:04]}  Kg7 {[%clk 0:00:05]} 64. Bf5 {[%clk 0:00:04]}  Rc5 {[%clk 0:00:04]} 65. Rg6+ {[%clk 0:00:03]}  Kf7 {[%clk 0:00:04]} 66. Rxg5 {[%clk 0:00:03]}  Kf6 {[%clk 0:00:05]} 67. Kh4 {[%clk 0:00:04]}  Rc4+ {[%clk 0:00:04]} 68. g4 {[%clk 0:00:04]}  Rc3 {[%clk 0:00:05]} 69. Rg6+ {[%clk 0:00:05]}  Kf7 {[%clk 0:00:05]} 70. h3 {[%clk 0:00:05]}  Rf3 {[%clk 0:00:05]} 71. Ra6 {[%clk 0:00:05]}  Rc3 {[%clk 0:00:05]} 72. Kg5 {[%clk 0:00:06]}  Ke7 {[%clk 0:00:05]} 73. h4 {[%clk 0:00:06]}  Rc5 {[%clk 0:00:05]} 74. h5 {[%clk 0:00:06]}  Ra5 {[%clk 0:00:04]} 75. Rxa5 {[%clk 0:00:06]}  Kd6 {[%clk 0:00:05]} 76. h6 {[%clk 0:00:07]}  Kc6 {[%clk 0:00:05]} 77. h7 {[%clk 0:00:08]}  Kb6 {[%clk 0:00:06]} 78. Re5 {[%clk 0:00:08]}  Kc6 {[%clk 0:00:06]} 79. h8=Q {[%clk 0:00:09]}  Kd6 {[%clk 0:00:07]} 80. Qf6+ {[%clk 0:00:09]}  Kc7 {[%clk 0:00:07]} 81. Re7+ {[%clk 0:00:09]}  Kd8 {[%clk 0:00:08]} 82. Qf8# {[%clk 0:00:10]} 1-0


[Site "https://www.chess.com"]

[Event "Titled Tuesday Blitz January 03 Late 2023"]
[White "Fernandez Hernandez, Gerardo"]
[Black "Derige Kane, Yan"]
[WhiteFideId "2207400"]
[BlackFideId "20665431"]
[WhiteElo "2181"]
[BlackElo "2204"]
[Result "0-1"]
[Round "05"]
[TimeControl "180+2"]
[Date "2023.01.03"]
[WhiteClock "0:00:01"]
[BlackClock "0:00:52"]

1. e4 {[%clk 0:02:56]}  c5 {[%clk 0:02:57]} 2. d3 {[%clk 0:02:56]}  e5 {[%clk 0:02:53]} 3. g3 {[%clk 0:02:56]}  d5 {[%clk 0:02:41]} 4. Nd2 {[%clk 0:02:55]}  Be6 {[%clk 0:02:38]} 5. Bg2 {[%clk 0:02:54]}  Nc6 {[%clk 0:02:38]} 6. Ngf3 {[%clk 0:02:54]}  f6 {[%clk 0:02:38]} 7. O-O {[%clk 0:02:51]}  Bd6 {[%clk 0:02:38]} 8. Nh4 {[%clk 0:02:34]}  Nge7 {[%clk 0:02:30]} 9. exd5 {[%clk 0:02:08]}  Nxd5 {[%clk 0:02:29]} 10. Nf5 {[%clk 0:02:06]}  Bf8 {[%clk 0:02:01]} 11. Ne3 {[%clk 0:01:43]}  Qd7 {[%clk 0:01:58]} 12. Nxd5 {[%clk 0:01:36]}  Bxd5 {[%clk 0:01:56]} 13. Bxd5 {[%clk 0:01:35]}  Qxd5 {[%clk 0:01:57]} 14. Qf3 {[%clk 0:01:30]}  Qxf3 {[%clk 0:01:53]} 15. Nxf3 {[%clk 0:01:31]}  O-O-O {[%clk 0:01:54]} 16. Be3 {[%clk 0:01:27]}  Nd4 {[%clk 0:01:47]} 17. Bxd4 {[%clk 0:01:25]}  cxd4 {[%clk 0:01:48]} 18. Nd2 {[%clk 0:01:12]}  Be7 {[%clk 0:01:44]} 19. a4 {[%clk 0:01:10]}  Kb8 {[%clk 0:01:44]} 20. Nc4 {[%clk 0:01:10]}  Rc8 {[%clk 0:01:43]} 21. b3 {[%clk 0:01:10]}  Bb4 {[%clk 0:01:41]} 22. f4 {[%clk 0:01:09]}  Bc3 {[%clk 0:01:35]} 23. Rad1 {[%clk 0:01:03]}  exf4 {[%clk 0:01:34]} 24. gxf4 {[%clk 0:00:57]}  Rce8 {[%clk 0:01:33]} 25. Rf2 {[%clk 0:00:53]}  Kc7 {[%clk 0:01:28]} 26. Kf1 {[%clk 0:00:47]}  Re7 {[%clk 0:01:24]} 27. Re2 {[%clk 0:00:45]}  Rhe8 {[%clk 0:01:21]} 28. Rxe7+ {[%clk 0:00:43]}  Rxe7 {[%clk 0:01:22]} 29. Kf2 {[%clk 0:00:43]}  b6 {[%clk 0:01:19]} 30. Rg1 {[%clk 0:00:29]}  a6 {[%clk 0:01:14]} 31. Kf3 {[%clk 0:00:12]}  Kc6 {[%clk 0:01:06]} 32. Rg2 {[%clk 0:00:10]}  b5 {[%clk 0:01:02]} 33. axb5+ {[%clk 0:00:10]}  axb5 {[%clk 0:01:03]} 34. Na3 {[%clk 0:00:10]}  Re1 {[%clk 0:01:00]} 35. Re2 {[%clk 0:00:07]}  Ra1 {[%clk 0:00:58]} 36. Nxb5 {[%clk 0:00:04]}  Kxb5 {[%clk 0:00:57]} 37. Re7 {[%clk 0:00:04]}  Rg1 {[%clk 0:00:57]} 38. Kf2 {[%clk 0:00:02]}  Rg6 {[%clk 0:00:53]} 39. Rd7 {[%clk 0:00:01]}  Kb4 {[%clk 0:00:52]} 0-1


[Site "https://www.chess.com"]

[Event "Titled Tuesday Blitz January 03 Late 2023"]
[White "Sukandar, Irine Kharisma"]
[Black "Curtis, John"]
[WhiteFideId "7101937"]
[BlackFideId "3200256"]
[WhiteElo "2390"]
[BlackElo "2292"]
[Result "1-0"]
[Round "05"]
[TimeControl "180+2"]
[Date "2023.01.03"]
[WhiteClock "0:00:50"]
[BlackClock "0:00:01"]

1. d4 {[%clk 0:02:54]}  Nf6 {[%clk 0:02:59]} 2. Bf4 {[%clk 0:02:53]}  d6 {[%clk 0:02:56]} 3. Nc3 {[%clk 0:02:52]}  Nh5 {[%clk 0:02:55]} 4. Bg5 {[%clk 0:02:48]}  h6 {[%clk 0:02:55]} 5. Bh4 {[%clk 0:02:47]}  g5 {[%clk 0:02:55]} 6. e3 {[%clk 0:02:45]}  Nf6 {[%clk 0:02:52]} 7. Bg3 {[%clk 0:02:45]}  Bf5 {[%clk 0:02:46]} 8. Bd3 {[%clk 0:02:42]}  Bxd3 {[%clk 0:02:45]} 9. Qxd3 {[%clk 0:02:42]}  c6 {[%clk 0:02:41]} 10. h4 {[%clk 0:02:41]}  g4 {[%clk 0:02:31]} 11. O-O-O {[%clk 0:02:41]}  Nbd7 {[%clk 0:02:15]} 12. h5 {[%clk 0:02:40]}  b5 {[%clk 0:02:13]} 13. d5 {[%clk 0:02:35]}  b4 {[%clk 0:01:52]} 14. dxc6 {[%clk 0:02:29]}  bxc3 {[%clk 0:01:51]} 15. cxd7+ {[%clk 0:02:29]}  Nxd7 {[%clk 0:01:41]} 16. Qxc3 {[%clk 0:02:28]}  Rg8 {[%clk 0:01:40]} 17. Ne2 {[%clk 0:02:24]}  Bg7 {[%clk 0:01:37]} 18. Nd4 {[%clk 0:02:19]}  Rc8 {[%clk 0:01:37]} 19. Qa3 {[%clk 0:01:50]}  Qc7 {[%clk 0:01:32]} 20. c3 {[%clk 0:01:49]}  Nc5 {[%clk 0:01:22]} 21. Nf5 {[%clk 0:01:41]}  Bf8 {[%clk 0:01:20]} 22. Bf4 {[%clk 0:01:34]}  Ne4 {[%clk 0:00:52]} 23. Qa4+ {[%clk 0:01:32]}  Qc6 {[%clk 0:00:53]} 24. Qxc6+ {[%clk 0:01:28]}  Rxc6 {[%clk 0:00:53]} 25. Rhf1 {[%clk 0:01:26]}  e6 {[%clk 0:00:44]} 26. Nxh6 {[%clk 0:01:20]}  Bxh6 {[%clk 0:00:39]} 27. Bxh6 {[%clk 0:01:20]}  Rh8 {[%clk 0:00:39]} 28. Bf4 {[%clk 0:01:20]}  Rxh5 {[%clk 0:00:39]} 29. f3 {[%clk 0:01:18]}  gxf3 {[%clk 0:00:35]} 30. gxf3 {[%clk 0:01:18]}  e5 {[%clk 0:00:28]} 31. fxe4 {[%clk 0:01:18]}  exf4 {[%clk 0:00:28]} 32. exf4 {[%clk 0:01:15]}  Rh4 {[%clk 0:00:24]} 33. Rd4 {[%clk 0:01:10]}  Rh2 {[%clk 0:00:20]} 34. Rd2 {[%clk 0:01:09]}  Rh4 {[%clk 0:00:20]} 35. a3 {[%clk 0:01:06]}  Ke7 {[%clk 0:00:17]} 36. Kc2 {[%clk 0:00:58]}  Rc4 {[%clk 0:00:16]} 37. Kd3 {[%clk 0:00:57]}  Ra4 {[%clk 0:00:13]} 38. Ke3 {[%clk 0:00:55]}  f6 {[%clk 0:00:10]} 39. Rd4 {[%clk 0:00:54]}  Ra6 {[%clk 0:00:09]} 40. Rb4 {[%clk 0:00:53]}  Rh3+ {[%clk 0:00:05]} 41. Rf3 {[%clk 0:00:50]}  Rxf3+ {[%clk 0:00:01]} 42. Kxf3 {[%clk 0:00:50]} 1-0


[Site "https://www.chess.com"]

[Event "Titled Tuesday Blitz January 03 Late 2023"]
[White "Zomorrodian, Eilia"]
[Black "Calcada, Lucas Galvan"]
[WhiteFideId "12551805"]
[BlackFideId "22746099"]
[WhiteElo "2109"]
[BlackElo "1739"]
[Result "1-0"]
[Round "05"]
[TimeControl "180+2"]
[Date "2023.01.03"]
[WhiteClock "0:00:10"]
[BlackClock "0:00:13"]

1. Nf3 {[%clk 0:03:00]}  d5 {[%clk 0:02:47]} 2. c4 {[%clk 0:03:00]}  e6 {[%clk 0:02:40]} 3. e3 {[%clk 0:03:00]}  Nf6 {[%clk 0:02:39]} 4. a3 {[%clk 0:02:59]}  c6 {[%clk 0:02:38]} 5. b4 {[%clk 0:02:59]}  Be7 {[%clk 0:02:36]} 6. Bb2 {[%clk 0:03:00]}  O-O {[%clk 0:02:35]} 7. cxd5 {[%clk 0:02:59]}  exd5 {[%clk 0:02:33]} 8. Be2 {[%clk 0:02:58]}  Bf5 {[%clk 0:02:30]} 9. O-O {[%clk 0:02:58]}  a5 {[%clk 0:02:29]} 10. b5 {[%clk 0:02:49]}  c5 {[%clk 0:02:20]} 11. d4 {[%clk 0:02:38]}  b6 {[%clk 0:02:03]} 12. Nc3 {[%clk 0:02:36]}  Nbd7 {[%clk 0:02:00]} 13. dxc5 {[%clk 0:02:32]}  Nxc5 {[%clk 0:01:58]} 14. Nd4 {[%clk 0:02:29]}  Bg6 {[%clk 0:01:57]} 15. Nc6 {[%clk 0:01:58]}  Qd7 {[%clk 0:01:48]} 16. Nxd5 {[%clk 0:01:53]}  Nxd5 {[%clk 0:01:34]} 17. Qxd5 {[%clk 0:01:52]}  Rfe8 {[%clk 0:01:34]} 18. Bf3 {[%clk 0:01:07]}  Qxd5 {[%clk 0:01:21]} 19. Bxd5 {[%clk 0:01:08]}  Bf8 {[%clk 0:01:22]} 20. Bd4 {[%clk 0:01:05]}  a4 {[%clk 0:01:18]} 21. Rfd1 {[%clk 0:00:32]}  Rac8 {[%clk 0:01:12]} 22. Ne5 {[%clk 0:00:31]}  Rcd8 {[%clk 0:01:06]} 23. Ba2 {[%clk 0:00:26]}  Ne6 {[%clk 0:00:46]} 24. Nc6 {[%clk 0:00:25]}  Nxd4 {[%clk 0:00:33]} 25. Nxd8 {[%clk 0:00:25]}  Rxd8 {[%clk 0:00:31]} 26. Rxd4 {[%clk 0:00:22]}  Rc8 {[%clk 0:00:30]} 27. Bd5 {[%clk 0:00:15]}  Bc5 {[%clk 0:00:17]} 28. Rdd1 {[%clk 0:00:12]}  Bc2 {[%clk 0:00:17]} 29. Rd2 {[%clk 0:00:12]}  Bf5 {[%clk 0:00:15]} 30. h3 {[%clk 0:00:10]}  g5 {[%clk 0:00:14]} 31. Bc6 {[%clk 0:00:10]}  Kg7 {[%clk 0:00:13]} 32. Bd7 {[%clk 0:00:10]}  Rc7 {[%clk 0:00:13]} 33. Bxf5 {[%clk 0:00:10]} 1-0


[Site "https://www.chess.com"]

[Event "Titled Tuesday Blitz January 03 Late 2023"]
[White "Guerra Rivera, Salvador"]
[Black "Liu, Casper"]
[WhiteFideId "32096542"]
[BlackFideId "1454153"]
[WhiteElo "2290"]
[BlackElo "2278"]
[Result "1-0"]
[Round "05"]
[TimeControl "180+2"]
[Date "2023.01.03"]
[WhiteClock "0:01:12"]
[BlackClock "0:00:21"]

1. Nf3 {[%clk 0:03:00]}  Nc6 {[%clk 0:02:52]} 2. e4 {[%clk 0:02:51]}  d6 {[%clk 0:02:47]} 3. d4 {[%clk 0:02:50]}  g6 {[%clk 0:02:45]} 4. c3 {[%clk 0:02:45]}  Bg7 {[%clk 0:02:45]} 5. Bd3 {[%clk 0:02:45]}  Nf6 {[%clk 0:02:44]} 6. O-O {[%clk 0:02:35]}  Bg4 {[%clk 0:02:44]} 7. h3 {[%clk 0:02:34]}  Bxf3 {[%clk 0:02:44]} 8. Qxf3 {[%clk 0:02:35]}  e5 {[%clk 0:02:41]} 9. Bb5 {[%clk 0:02:29]}  exd4 {[%clk 0:02:39]} 10. cxd4 {[%clk 0:02:29]}  O-O {[%clk 0:02:38]} 11. Rd1 {[%clk 0:02:23]}  Nd7 {[%clk 0:02:27]} 12. Be3 {[%clk 0:02:15]}  f5 {[%clk 0:02:26]} 13. Nc3 {[%clk 0:02:10]}  f4 {[%clk 0:02:16]} 14. Bxc6 {[%clk 0:02:09]}  bxc6 {[%clk 0:02:04]} 15. Bc1 {[%clk 0:02:07]}  c5 {[%clk 0:01:52]} 16. Ne2 {[%clk 0:01:40]}  cxd4 {[%clk 0:01:48]} 17. Nxd4 {[%clk 0:01:40]}  Ne5 {[%clk 0:01:48]} 18. Qb3+ {[%clk 0:01:40]}  Rf7 {[%clk 0:01:42]} 19. Ne6 {[%clk 0:01:39]}  Qh4 {[%clk 0:01:34]} 20. Bxf4 {[%clk 0:01:35]}  Re8 {[%clk 0:01:17]} 21. Bg3 {[%clk 0:01:35]}  Qf6 {[%clk 0:00:58]} 22. Nxc7 {[%clk 0:01:31]}  Rf8 {[%clk 0:00:53]} 23. Ne6 {[%clk 0:01:26]}  Re8 {[%clk 0:00:46]} 24. Nxg7 {[%clk 0:01:26]}  Kxg7 {[%clk 0:00:44]} 25. Rac1 {[%clk 0:01:22]}  h5 {[%clk 0:00:34]} 26. f3 {[%clk 0:01:14]}  h4 {[%clk 0:00:22]} 27. Bxe5 {[%clk 0:01:13]}  Rxe5 {[%clk 0:00:23]} 28. Rc6 {[%clk 0:01:13]}  Rg5 {[%clk 0:00:20]} 29. Rdxd6 {[%clk 0:01:09]}  Qxf3 {[%clk 0:00:20]} 30. Qxf3 {[%clk 0:01:10]}  Rxf3 {[%clk 0:00:20]} 31. Rxg6+ {[%clk 0:01:10]}  Rxg6 {[%clk 0:00:19]} 32. Rxg6+ {[%clk 0:01:11]}  Kxg6 {[%clk 0:00:20]} 33. gxf3 {[%clk 0:01:12]}  Kg5 {[%clk 0:00:20]} 34. Kf2 {[%clk 0:01:12]}  Kf4 {[%clk 0:00:21]} 35. b4 {[%clk 0:01:12]}  a6 {[%clk 0:00:21]} 36. a4 {[%clk 0:01:12]} 1-0


[Site "https://www.chess.com"]